[Event "Live Chess"]
[Site "Chess.com"]
[Date "2023.05.20"]
[Round "-"]
[White "mikkyb4"]
[Black "LiamBellwood"]
[Result "0-1"]
[WhiteElo "1010"]
[BlackElo "2056"]
[TimeControl "300"]
[EndTime "12:21:15 PDT"]
[Termination "LiamBellwood won by resignation"]

1. e4 {[%clk 0:04:58.9]} 1... e6 {[%clk 0:04:59.9]} 2. b3 {[%clk 0:04:55]} 2...
d5 {[%clk 0:04:59.8]} 3. Bb2 {[%clk 0:04:54.1]} 3... dxe4 {[%clk 0:04:59.4]} 4.
Nc3 {[%clk 0:04:52.7]} 4... Nf6 {[%clk 0:04:59.3]} 5. Qe2 {[%clk 0:04:51.5]}
5... Be7 {[%clk 0:04:48.5]} 6. Nxe4 {[%clk 0:04:48.2]} 6... O-O {[%clk
0:04:48.2]} 7. Nxf6+ {[%clk 0:04:46.1]} 7... Bxf6 {[%clk 0:04:48.1]} 8. Bxf6
{[%clk 0:04:44.1]} 8... Qxf6 {[%clk 0:04:48]} 9. Rd1 {[%clk 0:04:36.9]} 9... b6
{[%clk 0:04:46.2]} 10. Qd3 {[%clk 0:04:30.9]} 10... Ba6 {[%clk 0:04:44.3]} 11.
Qf3 {[%clk 0:04:26.6]} 11... Qxf3 {[%clk 0:04:39.4]} 12. Nxf3 {[%clk 0:04:25.5]}
12... Bxf1 {[%clk 0:04:39.3]} 13. Rxf1 {[%clk 0:04:24.7]} 13... c5 {[%clk
0:04:36.3]} 14. Ke2 {[%clk 0:04:20.9]} 14... Nc6 {[%clk 0:04:34.9]} 15. Rfe1
{[%clk 0:04:19.8]} 15... Rad8 {[%clk 0:04:33.8]} 16. Kf1 {[%clk 0:04:16]} 16...
Nd4 {[%clk 0:04:32.4]} 17. Nxd4 {[%clk 0:04:14.5]} 17... Rxd4 {[%clk 0:04:32.3]}
18. c3 {[%clk 0:04:08.3]} 18... Rd3 {[%clk 0:04:31.5]} 19. Re3 {[%clk
0:04:05.2]} 19... Rd6 {[%clk 0:04:26.7]} 20. d4 {[%clk 0:03:57.2]} 20... Rfd8
{[%clk 0:04:24.8]} 21. Red3 {[%clk 0:03:53]} 21... cxd4 {[%clk 0:04:23.7]} 22.
c4 {[%clk 0:03:49.4]} 22... a5 {[%clk 0:04:19.1]} 23. a3 {[%clk 0:03:45.8]}
23... e5 {[%clk 0:04:18.6]} 24. f3 {[%clk 0:03:43]} 24... f5 {[%clk 0:04:17.4]}
25. b4 {[%clk 0:03:33.6]} 25... e4 {[%clk 0:04:16.5]} 26. fxe4 {[%clk
0:03:32.4]} 26... fxe4 {[%clk 0:04:16.4]} 27. R3d2 {[%clk 0:03:29.8]} 27... d3
{[%clk 0:04:15.8]} 28. c5 {[%clk 0:03:15.4]} 28... bxc5 {[%clk 0:04:13.2]} 29.
bxc5 {[%clk 0:03:14.3]} 29... Rd5 {[%clk 0:04:12.5]} 30. Rc1 {[%clk 0:03:11.7]}
30... e3 {[%clk 0:04:10.7]} 31. Ra2 {[%clk 0:03:05.5]} 31... Rf5+ {[%clk
0:04:06.9]} 32. Ke1 {[%clk 0:03:02.8]} 32... d2+ {[%clk 0:04:06.1]} 0-1

[Event "Live Chess"]
[Site "Chess.com"]
[Date "2023.05.20"]
[Round "-"]
[White "sup3rm0nk3y"]
[Black "MrBlond89"]
[Result "0-1"]
[WhiteElo "1320"]
[BlackElo "1316"]
[TimeControl "300"]
[EndTime "12:21:18 PDT"]
[Termination "MrBlond89 won by checkmate"]

1. e4 {[%clk 0:04:58.7]} 1... e5 {[%clk 0:04:58.9]} 2. Nf3 {[%clk 0:04:57.7]}
2... Nc6 {[%clk 0:04:57.5]} 3. Bc4 {[%clk 0:04:56.8]} 3... f5 {[%clk 0:04:56.8]}
4. exf5 {[%clk 0:04:55.4]} 4... e4 {[%clk 0:04:56.1]} 5. Ng1 {[%clk 0:04:51.3]}
5... Nf6 {[%clk 0:04:54.9]} 6. d3 {[%clk 0:04:47.7]} 6... d5 {[%clk 0:04:54.4]}
7. Bb3 {[%clk 0:04:44.8]} 7... Bxf5 {[%clk 0:04:51.8]} 8. dxe4 {[%clk
0:04:43.5]} 8... Bxe4 {[%clk 0:04:50.8]} 9. Nf3 {[%clk 0:04:41.8]} 9... Bc5
{[%clk 0:04:45.8]} 10. O-O {[%clk 0:04:37.2]} 10... O-O {[%clk 0:04:43.7]} 11.
Bg5 {[%clk 0:04:34.7]} 11... Bxf3 {[%clk 0:04:15.3]} 12. Qxf3 {[%clk 0:04:32.8]}
12... Nd4 {[%clk 0:04:14.2]} 13. Qd3 {[%clk 0:04:24.5]} 13... Nxb3 {[%clk
0:04:12.3]} 14. Qxb3 {[%clk 0:04:20.9]} 14... Qd6 {[%clk 0:04:00.3]} 15. Nc3
{[%clk 0:04:18.5]} 15... Ng4 {[%clk 0:03:55.8]} 16. Bh4 {[%clk 0:04:03.2]} 16...
Qxh2# {[%clk 0:03:54]} 0-1

[Event "Live Chess"]
[Site "Chess.com"]
[Date "2023.05.20"]
[Round "-"]
[White "smoggyrabbit"]
[Black "HoarseyHorsey"]
[Result "1-0"]
[WhiteElo "1650"]
[BlackElo "1399"]
[TimeControl "300"]
[EndTime "12:21:22 PDT"]
[Termination "smoggyrabbit won by checkmate"]

1. d4 {[%clk 0:04:59.2]} 1... Nf6 {[%clk 0:04:58.8]} 2. Nf3 {[%clk 0:04:57.7]}
2... d5 {[%clk 0:04:58.1]} 3. e3 {[%clk 0:04:56.9]} 3... Bg4 {[%clk 0:04:57.1]}
4. Nbd2 {[%clk 0:04:54.8]} 4... e6 {[%clk 0:04:56.5]} 5. h3 {[%clk 0:04:53.8]}
5... Bh5 {[%clk 0:04:54.9]} 6. g4 {[%clk 0:04:53.1]} 6... Bg6 {[%clk 0:04:53.9]}
7. Ne5 {[%clk 0:04:52.4]} 7... Bd6 {[%clk 0:04:52.1]} 8. h4 {[%clk 0:04:49.9]}
8... Bxe5 {[%clk 0:04:50.3]} 9. dxe5 {[%clk 0:04:49]} 9... Ne4 {[%clk
0:04:44.6]} 10. Nxe4 {[%clk 0:04:41.1]} 10... Bxe4 {[%clk 0:04:42.7]} 11. f3
{[%clk 0:04:40.2]} 11... Bg6 {[%clk 0:04:37.4]} 12. h5 {[%clk 0:04:39.4]} 12...
Nd7 {[%clk 0:04:33.8]} 13. hxg6 {[%clk 0:04:38.3]} 13... fxg6 {[%clk 0:04:32.8]}
14. Bd3 {[%clk 0:04:36.5]} 14... Nxe5 {[%clk 0:04:31.5]} 15. b3 {[%clk
0:04:29.2]} 15... O-O {[%clk 0:04:30.1]} 16. Bb2 {[%clk 0:04:27.3]} 16... Nxf3+
{[%clk 0:04:27.6]} 17. Ke2 {[%clk 0:04:19.9]} 17... e5 {[%clk 0:04:22.1]} 18. e4
{[%clk 0:03:57.3]} 18... d4 {[%clk 0:04:03.7]} 19. Bc4+ {[%clk 0:03:56.1]} 19...
Kh8 {[%clk 0:04:01.4]} 20. Bc1 {[%clk 0:03:15.4]} 20... a6 {[%clk 0:03:29.7]}
21. g5 {[%clk 0:01:21.6]} 21... b5 {[%clk 0:03:16.6]} 22. Rxh7+ {[%clk
0:01:19.1]} 22... Kxh7 {[%clk 0:03:14.5]} 23. Qh1+ {[%clk 0:01:18]} 23... Nh4
{[%clk 0:03:11]} 24. Qxh4# {[%clk 0:01:17.1]} 1-0

[Event "Live Chess"]
[Site "Chess.com"]
[Date "2023.05.20"]
[Round "-"]
[White "diana21strabt"]
[Black "Waterphall"]
[Result "1-0"]
[WhiteElo "1671"]
[BlackElo "728"]
[TimeControl "300"]
[EndTime "12:21:26 PDT"]
[Termination "diana21strabt won by resignation"]

1. e4 {[%clk 0:04:56.7]} 1... e6 {[%clk 0:04:59.9]} 2. d4 {[%clk 0:04:55.1]}
2... d5 {[%clk 0:04:58.7]} 3. exd5 {[%clk 0:04:53.8]} 3... exd5 {[%clk
0:04:57.1]} 4. Nc3 {[%clk 0:04:52.7]} 4... Nf6 {[%clk 0:04:54.1]} 5. Bb5+ {[%clk
0:04:51.1]} 5... Bd7 {[%clk 0:04:52]} 6. Bxd7+ {[%clk 0:04:49.1]} 6... Qxd7
{[%clk 0:04:47.7]} 7. Nf3 {[%clk 0:04:47.7]} 7... Nc6 {[%clk 0:04:44.5]} 8. O-O
{[%clk 0:04:45.8]} 8... O-O-O {[%clk 0:04:41.4]} 9. Bg5 {[%clk 0:04:36]} 9...
Qd6 {[%clk 0:04:31.8]} 10. Qd3 {[%clk 0:04:23.7]} 10... Be7 {[%clk 0:04:24.1]}
11. Rae1 {[%clk 0:04:16.3]} 11... h6 {[%clk 0:04:19.2]} 12. Bxf6 {[%clk
0:04:12.5]} 12... Bxf6 {[%clk 0:04:05]} 13. Nb5 {[%clk 0:04:07.6]} 13... Qb4
{[%clk 0:03:39.8]} 14. Qb3 {[%clk 0:03:49.7]} 14... Qxb3 {[%clk 0:03:35.2]} 15.
axb3 {[%clk 0:03:48.7]} 15... a6 {[%clk 0:03:32.2]} 16. Nc3 {[%clk 0:03:43.3]}
16... Nb4 {[%clk 0:03:21.4]} 17. Re2 {[%clk 0:03:39.1]} 17... Rhe8 {[%clk
0:03:16.6]} 18. Rfe1 {[%clk 0:03:36.6]} 18... Rxe2 {[%clk 0:02:58.2]} 19. Rxe2
{[%clk 0:03:30.4]} 19... Kd7 {[%clk 0:02:49]} 20. g3 {[%clk 0:03:23.3]} 20...
Re8 {[%clk 0:02:46.4]} 21. Rd2 {[%clk 0:03:17.8]} 21... g5 {[%clk 0:02:35.2]}
22. h3 {[%clk 0:02:54.9]} 22... h5 {[%clk 0:02:26.3]} 23. Ne2 {[%clk 0:02:45.2]}
23... g4 {[%clk 0:02:20.2]} 24. hxg4 {[%clk 0:02:43.4]} 24... hxg4 {[%clk
0:02:18.9]} 25. Nh2 {[%clk 0:02:39.4]} 25... Bg5 {[%clk 0:02:14.3]} 26. Nf4
{[%clk 0:02:33.3]} 26... Bxf4 {[%clk 0:02:02.5]} 27. gxf4 {[%clk 0:02:29.9]}
27... Rg8 {[%clk 0:02:00.3]} 28. c3 {[%clk 0:02:25.9]} 28... Na2 {[%clk
0:01:51.6]} 29. Kg2 {[%clk 0:02:17.3]} 29... f5 {[%clk 0:01:44.7]} 30. Rd1
{[%clk 0:02:10.3]} 30... b5 {[%clk 0:01:38.5]} 31. Ra1 {[%clk 0:02:07.2]} 31...
Nxc3 {[%clk 0:01:29.9]} 32. bxc3 {[%clk 0:02:05.3]} 32... c5 {[%clk 0:01:23.6]}
33. Rxa6 {[%clk 0:02:03.2]} 33... cxd4 {[%clk 0:01:22]} 34. cxd4 {[%clk
0:02:01.9]} 34... Rc8 {[%clk 0:01:16.3]} 35. Rb6 {[%clk 0:01:59.2]} 35... Rc6
{[%clk 0:01:05.5]} 36. Rxb5 {[%clk 0:01:57.7]} 36... Kd6 {[%clk 0:01:04.3]} 37.
Nf1 {[%clk 0:01:50.7]} 37... Rc3 {[%clk 0:00:55.9]} 38. Ne3 {[%clk 0:01:49.1]}
38... Rxe3 {[%clk 0:00:38.3]} 39. fxe3 {[%clk 0:01:47.3]} 39... Kc6 {[%clk
0:00:36.1]} 40. Rc5+ {[%clk 0:01:46.1]} 40... Kd6 {[%clk 0:00:33.8]} 41. b4
{[%clk 0:01:45.3]} 1-0

[Event "Live Chess"]
[Site "Chess.com"]
[Date "2023.05.20"]
[Round "-"]
[White "MaximKris"]
[Black "apl_trainer"]
[Result "0-1"]
[WhiteElo "1862"]
[BlackElo "1658"]
[TimeControl "300"]
[EndTime "12:21:31 PDT"]
[Termination "apl_trainer won by checkmate"]

1. e4 {[%clk 0:04:58.8]} 1... c5 {[%clk 0:04:58.8]} 2. Nf3 {[%clk 0:04:57.9]}
2... e6 {[%clk 0:04:57.7]} 3. c3 {[%clk 0:04:55.1]} 3... Nf6 {[%clk 0:04:55.9]}
4. Bd3 {[%clk 0:04:53.5]} 4... d5 {[%clk 0:04:53.6]} 5. e5 {[%clk 0:04:51.7]}
5... Nfd7 {[%clk 0:04:52.4]} 6. O-O {[%clk 0:04:50.6]} 6... Nc6 {[%clk
0:04:49.9]} 7. Re1 {[%clk 0:04:48.5]} 7... Qc7 {[%clk 0:04:48]} 8. a4 {[%clk
0:04:37.8]} 8... Ncxe5 {[%clk 0:04:43.5]} 9. Nxe5 {[%clk 0:04:15.2]} 9... Nxe5
{[%clk 0:04:41.5]} 10. Bc2 {[%clk 0:04:10.4]} 10... Bd6 {[%clk 0:04:38.1]} 11.
d4 {[%clk 0:04:08]} 11... Ng6 {[%clk 0:04:31.8]} 12. dxc5 {[%clk 0:03:59.3]}
12... Bxh2+ {[%clk 0:04:25.9]} 13. Kh1 {[%clk 0:03:56.8]} 13... Bf4 {[%clk
0:04:21.9]} 14. Bxf4 {[%clk 0:03:54.2]} 14... Qxf4 {[%clk 0:04:20.4]} 15. Qf3
{[%clk 0:03:49.8]} 15... Qxf3 {[%clk 0:04:12.2]} 16. gxf3 {[%clk 0:03:47.5]}
16... Bd7 {[%clk 0:04:09.8]} 17. b4 {[%clk 0:03:40.4]} 17... O-O {[%clk
0:03:54.1]} 18. a5 {[%clk 0:03:36.7]} 18... e5 {[%clk 0:03:37.4]} 19. Ba4 {[%clk
0:03:33.2]} 19... Bxa4 {[%clk 0:03:32.8]} 20. Rxa4 {[%clk 0:03:31.3]} 20... Rfd8
{[%clk 0:03:23]} 21. Ra2 {[%clk 0:03:25.2]} 21... d4 {[%clk 0:03:20.4]} 22. cxd4
{[%clk 0:03:22.1]} 22... Rxd4 {[%clk 0:03:18.3]} 23. Rb2 {[%clk 0:03:06.7]}
23... Rad8 {[%clk 0:03:10.6]} 24. Re4 {[%clk 0:02:47.1]} 24... Rd1+ {[%clk
0:03:00.7]} 25. Kg2 {[%clk 0:02:43.8]} 25... f5 {[%clk 0:02:50.2]} 26. Ree2
{[%clk 0:02:29.4]} 26... Nf4+ {[%clk 0:02:48.6]} 27. Kg3 {[%clk 0:02:27.9]}
27... Nxe2+ {[%clk 0:02:40.2]} 28. Rxe2 {[%clk 0:02:26.4]} 28... Rxb1 {[%clk
0:02:38.4]} 29. Rxe5 {[%clk 0:02:25.5]} 29... Rxb4 {[%clk 0:02:35.7]} 30. Rxf5
{[%clk 0:02:24.5]} 30... Ra4 {[%clk 0:02:33.1]} 31. Re5 {[%clk 0:02:22.5]} 31...
Rxa5 {[%clk 0:02:30.1]} 32. Re7 {[%clk 0:02:19.9]} 32... Rxc5 {[%clk 0:02:26.6]}
33. Rxb7 {[%clk 0:02:18.4]} 33... Ra8 {[%clk 0:02:24.9]} 34. Rb4 {[%clk
0:02:15.8]} 34... a5 {[%clk 0:02:23.7]} 35. Ra4 {[%clk 0:02:14.7]} 35... Rb5
{[%clk 0:02:22.3]} 36. Kf4 {[%clk 0:02:12.9]} 36... Rb4+ {[%clk 0:02:21.2]} 37.
Rxb4 {[%clk 0:02:12.4]} 37... axb4 {[%clk 0:02:20.1]} 38. Ke3 {[%clk 0:02:11.7]}
38... b3 {[%clk 0:02:16.6]} 39. Kd2 {[%clk 0:02:08.9]} 39... b2 {[%clk
0:02:14.9]} 40. Kc2 {[%clk 0:02:08.8]} 40... Rb8 {[%clk 0:02:13.4]} 41. Kb1
{[%clk 0:02:06.9]} 41... Kf7 {[%clk 0:02:11.6]} 42. f4 {[%clk 0:02:06.8]} 42...
Kf6 {[%clk 0:02:10.1]} 43. f5 {[%clk 0:02:06.7]} 43... Kxf5 {[%clk 0:02:08.6]}
44. f3 {[%clk 0:01:58]} 44... Kf4 {[%clk 0:02:07.1]} 45. Kc2 {[%clk 0:01:57.8]}
45... b1=Q+ {[%clk 0:02:05]} 46. Kc3 {[%clk 0:01:55.7]} 46... Rc8+ {[%clk
0:02:02.9]} 47. Kd4 {[%clk 0:01:55.6]} 47... Qb4+ {[%clk 0:02:00]} 48. Kd5
{[%clk 0:01:55.5]} 48... Rd8+ {[%clk 0:01:58.1]} 49. Ke6 {[%clk 0:01:55.4]}
49... Qd6+ {[%clk 0:01:55.2]} 50. Kf7 {[%clk 0:01:54]} 50... Qf6# {[%clk
0:01:52.6]} 0-1

[Event "Live Chess"]
[Site "Chess.com"]
[Date "2023.05.20"]
[Round "-"]
[White "Richardallis"]
[Black "gggoodgamebroski"]
[Result "1-0"]
[WhiteElo "1733"]
[BlackElo "338"]
[TimeControl "300"]
[EndTime "12:21:32 PDT"]
[Termination "Richardallis won by resignation"]

1. d4 {[%clk 0:04:56.2]} 1... d5 {[%clk 0:04:59.9]} 2. Nf3 {[%clk 0:04:55.5]}
2... e6 {[%clk 0:04:58]} 3. Bg5 {[%clk 0:04:54.8]} 3... f6 {[%clk 0:04:55.3]} 4.
Bh4 {[%clk 0:04:54]} 4... g6 {[%clk 0:04:53.3]} 5. Nbd2 {[%clk 0:04:52.3]} 5...
g5 {[%clk 0:04:51.7]} 6. Bg3 {[%clk 0:04:51.3]} 6... g4 {[%clk 0:04:48.4]} 7.
Ng1 {[%clk 0:04:48.7]} 7... Bd6 {[%clk 0:04:43.4]} 8. Bxd6 {[%clk 0:04:47.4]}
8... Qxd6 {[%clk 0:04:41.9]} 9. c3 {[%clk 0:04:46]} 9... Qb6 {[%clk 0:04:40.1]}
10. b4 {[%clk 0:04:44]} 10... e5 {[%clk 0:04:38.7]} 11. e3 {[%clk 0:04:41.8]}
11... Qb5 {[%clk 0:04:34]} 12. Bxb5+ {[%clk 0:04:40.3]} 12... c6 {[%clk
0:04:32.8]} 13. Be2 {[%clk 0:04:38.8]} 13... b6 {[%clk 0:04:30.5]} 14. Bxg4
{[%clk 0:04:37.5]} 14... Bxg4 {[%clk 0:04:29.1]} 15. Qxg4 {[%clk 0:04:37]} 15...
Nh6 {[%clk 0:04:27.6]} 16. Qh5+ {[%clk 0:04:32.8]} 1-0

[Event "Live Chess"]
[Site "Chess.com"]
[Date "2023.05.20"]
[Round "-"]
[White "whitedjohn"]
[Black "jameskwong"]
[Result "0-1"]
[WhiteElo "1662"]
[BlackElo "2145"]
[TimeControl "300"]
[EndTime "12:21:37 PDT"]
[Termination "jameskwong won by resignation"]

1. e4 {[%clk 0:04:55.6]} 1... c5 {[%clk 0:04:58.3]} 2. Nf3 {[%clk 0:04:54.9]}
2... d6 {[%clk 0:04:55.7]} 3. d4 {[%clk 0:04:54.3]} 3... cxd4 {[%clk 0:04:55.6]}
4. Nxd4 {[%clk 0:04:52.2]} 4... Nf6 {[%clk 0:04:54.9]} 5. Nc3 {[%clk 0:04:50.9]}
5... Nc6 {[%clk 0:04:53.5]} 6. Bc4 {[%clk 0:04:49.1]} 6... e6 {[%clk 0:04:51.9]}
7. Be3 {[%clk 0:04:46]} 7... Be7 {[%clk 0:04:49.1]} 8. Bb3 {[%clk 0:04:44.6]}
8... O-O {[%clk 0:04:47.4]} 9. Qe2 {[%clk 0:04:43.8]} 9... a6 {[%clk 0:04:46]}
10. O-O-O {[%clk 0:04:42.8]} 10... Qc7 {[%clk 0:04:45.3]} 11. g4 {[%clk
0:04:34.9]} 11... b5 {[%clk 0:04:40.2]} 12. g5 {[%clk 0:04:32.6]} 12... Nd7
{[%clk 0:04:37.8]} 13. Bxe6 {[%clk 0:04:25.6]} 13... fxe6 {[%clk 0:04:17]} 14.
Nxe6 {[%clk 0:04:24.9]} 14... Qa5 {[%clk 0:04:05.1]} 15. Nxf8 {[%clk 0:04:22.4]}
15... Bxf8 {[%clk 0:03:51.7]} 16. Kb1 {[%clk 0:04:19.4]} 16... Nc5 {[%clk
0:03:39.8]} 17. f3 {[%clk 0:03:39.7]} 17... Be6 {[%clk 0:03:25.6]} 18. Nd5
{[%clk 0:03:33.8]} 18... Rc8 {[%clk 0:03:05.5]} 19. f4 {[%clk 0:03:12.3]} 19...
Nxe4 {[%clk 0:02:52.3]} 20. Bb6 {[%clk 0:03:04.6]} 20... Qa4 {[%clk 0:02:50.4]}
21. b3 {[%clk 0:02:49.7]} 21... Bxd5 {[%clk 0:02:48]} 22. bxa4 {[%clk
0:02:46.6]} 22... Nc3+ {[%clk 0:02:46.4]} 23. Kb2 {[%clk 0:02:42.2]} 23... Nxe2
{[%clk 0:02:44.4]} 24. Rxd5 {[%clk 0:02:39.5]} 24... Nxf4 {[%clk 0:02:36]} 25.
Rf5 {[%clk 0:02:31.8]} 25... Ne6 {[%clk 0:02:25.5]} 26. axb5 {[%clk 0:02:28.7]}
26... Ncd4 {[%clk 0:02:19.1]} 0-1

[Event "Live Chess"]
[Site "Chess.com"]
[Date "2023.05.20"]
[Round "-"]
[White "ReceptiveCamel"]
[Black "Salpingidis"]
[Result "0-1"]
[WhiteElo "689"]
[BlackElo "2301"]
[TimeControl "300"]
[EndTime "12:21:40 PDT"]
[Termination "Salpingidis won by checkmate"]

1. e4 {[%clk 0:04:44.8]} 1... e6 {[%clk 0:04:59.9]} 2. Bc4 {[%clk 0:04:42.6]}
2... d5 {[%clk 0:04:59.8]} 3. exd5 {[%clk 0:04:41]} 3... exd5 {[%clk 0:04:59.7]}
4. Bd3 {[%clk 0:04:39.8]} 4... Bd6 {[%clk 0:04:57.7]} 5. Nf3 {[%clk 0:04:35.9]}
5... Nf6 {[%clk 0:04:57]} 6. b3 {[%clk 0:04:33.2]} 6... O-O {[%clk 0:04:56.2]}
7. Bb2 {[%clk 0:04:31]} 7... Re8+ {[%clk 0:04:55.6]} 8. Be2 {[%clk 0:04:21.9]}
8... c6 {[%clk 0:04:54.6]} 9. O-O {[%clk 0:04:16.9]} 9... Bg4 {[%clk 0:04:53]}
10. Ng5 {[%clk 0:04:13.8]} 10... Bxe2 {[%clk 0:04:49]} 11. Qc1 {[%clk
0:04:06.1]} 11... Bxf1 {[%clk 0:04:46.3]} 12. Qxf1 {[%clk 0:04:03.8]} 12...
Bxh2+ {[%clk 0:04:45.3]} 13. Kxh2 {[%clk 0:04:00.7]} 13... Ng4+ {[%clk 0:04:45]}
14. Kh3 {[%clk 0:03:56.2]} 14... Qxg5 {[%clk 0:04:44.9]} 15. f4 {[%clk
0:03:53.5]} 15... Qh5+ {[%clk 0:04:39.7]} 16. Kg3 {[%clk 0:03:51.4]} 16... Nd7
{[%clk 0:04:35.3]} 17. Qf3 {[%clk 0:03:34.3]} 17... Ndf6 {[%clk 0:04:25.4]} 18.
Na3 {[%clk 0:03:29.5]} 18... Ne4+ {[%clk 0:04:23.4]} 19. Qxe4 {[%clk 0:03:23.9]}
19... Rxe4 {[%clk 0:04:22.5]} 20. Bxg7 {[%clk 0:03:21.8]} 20... Qh2+ {[%clk
0:04:20.2]} 21. Kxg4 {[%clk 0:03:18.4]} 21... Rxf4+ {[%clk 0:04:19.6]} 22. Kg5
{[%clk 0:03:16.2]} 22... Qh4# {[%clk 0:04:19.5]} 0-1

[Event "Live Chess"]
[Site "Chess.com"]
[Date "2023.05.20"]
[Round "-"]
[White "KeithArkell"]
[Black "SupremeTactician"]
[Result "1-0"]
[WhiteElo "2614"]
[BlackElo "2380"]
[TimeControl "300"]
[EndTime "12:21:53 PDT"]
[Termination "KeithArkell won by resignation"]

1. d4 {[%clk 0:04:59]} 1... Nf6 {[%clk 0:04:58.2]} 2. Nf3 {[%clk 0:04:58.2]}
2... e6 {[%clk 0:04:57.6]} 3. c4 {[%clk 0:04:57]} 3... d5 {[%clk 0:04:55.7]} 4.
cxd5 {[%clk 0:04:55.6]} 4... exd5 {[%clk 0:04:55.1]} 5. Nc3 {[%clk 0:04:54.6]}
5... c6 {[%clk 0:04:51.1]} 6. Qc2 {[%clk 0:04:52.3]} 6... Bd6 {[%clk 0:04:48.2]}
7. Bg5 {[%clk 0:04:51]} 7... h6 {[%clk 0:04:47.1]} 8. Bxf6 {[%clk 0:04:50.3]}
8... Qxf6 {[%clk 0:04:47]} 9. Nxd5 {[%clk 0:04:49.7]} 9... Qe6 {[%clk
0:04:30.2]} 10. Nc3 {[%clk 0:04:48.7]} 10... O-O {[%clk 0:04:28.9]} 11. e3
{[%clk 0:04:48.1]} 11... f5 {[%clk 0:04:27.4]} 12. g3 {[%clk 0:04:46.2]} 12...
Kh8 {[%clk 0:04:24.9]} 13. Ne2 {[%clk 0:04:42.1]} 13... g5 {[%clk 0:04:21.8]}
14. h4 {[%clk 0:04:35.6]} 14... g4 {[%clk 0:04:20]} 15. Nd2 {[%clk 0:04:31.3]}
15... Qd5 {[%clk 0:04:18.7]} 16. Rg1 {[%clk 0:04:27.2]} 16... Na6 {[%clk
0:04:16.5]} 17. a3 {[%clk 0:04:25.6]} 17... Qf7 {[%clk 0:04:11]} 18. Nc3 {[%clk
0:04:22]} 18... Nc7 {[%clk 0:04:09.2]} 19. Nc4 {[%clk 0:04:20.9]} 19... Be7
{[%clk 0:03:35.5]} 20. Ne5 {[%clk 0:04:19.6]} 20... Qf6 {[%clk 0:03:34.8]} 21.
h5 {[%clk 0:04:17.8]} 21... Kh7 {[%clk 0:03:26.8]} 22. Bd3 {[%clk 0:04:15.2]}
22... Bd6 {[%clk 0:03:21.9]} 23. Ng6 {[%clk 0:04:05.2]} 23... Re8 {[%clk
0:03:21]} 24. O-O-O {[%clk 0:04:03.5]} 24... Bd7 {[%clk 0:03:15.9]} 25. Nh4
{[%clk 0:03:57.3]} 25... Rf8 {[%clk 0:03:07.8]} 26. e4 {[%clk 0:03:54]} 26...
Qg5+ {[%clk 0:03:02.3]} 27. Kb1 {[%clk 0:03:52.7]} 27... Rae8 {[%clk 0:02:52.9]}
28. exf5 {[%clk 0:03:40.3]} 28... Qf6 {[%clk 0:02:40.9]} 29. Ng6 {[%clk
0:03:31.9]} 29... Rf7 {[%clk 0:02:38.8]} 30. Ne4 {[%clk 0:03:30.8]} 30... Rxe4
{[%clk 0:02:37.9]} 31. Bxe4 {[%clk 0:03:29.4]} 31... Bxf5 {[%clk 0:02:25.5]} 32.
Bxf5 {[%clk 0:03:26.5]} 32... Qxf5 {[%clk 0:02:24.3]} 33. Qxf5 {[%clk
0:03:24.9]} 33... Rxf5 {[%clk 0:02:24.2]} 34. Rh1 {[%clk 0:03:21.5]} 34... Rxf2
{[%clk 0:02:20.8]} 35. Rdf1 {[%clk 0:03:20.3]} 35... Bxg3 {[%clk 0:02:19.4]} 36.
Rfg1 {[%clk 0:03:17.3]} 36... Rf3 {[%clk 0:02:10.9]} 37. Rg2 {[%clk 0:03:16]}
37... Ne6 {[%clk 0:02:00.7]} 38. Rhg1 {[%clk 0:03:11.8]} 38... Bf2 {[%clk
0:01:59.4]} 39. Rd1 {[%clk 0:03:05.8]} 39... g3 {[%clk 0:01:56.7]} 40. d5 {[%clk
0:03:04.5]} 40... Nd4 {[%clk 0:01:51.9]} 41. dxc6 {[%clk 0:02:58.7]} 41... bxc6
{[%clk 0:01:50.9]} 42. Ne5 {[%clk 0:02:54.3]} 42... Rf5 {[%clk 0:01:47.1]} 43.
Nd3 {[%clk 0:02:43.7]} 43... Nb3 {[%clk 0:01:12.2]} 44. Kc2 {[%clk 0:02:38.6]}
44... Nd4+ {[%clk 0:01:10.8]} 45. Kb1 {[%clk 0:02:35]} 45... Nb3 {[%clk
0:01:09.9]} 46. Ka2 {[%clk 0:02:29.7]} 46... Nd4 {[%clk 0:00:57.3]} 47. Nxf2
{[%clk 0:02:25.5]} 47... gxf2 {[%clk 0:00:56.3]} 48. Rf1 {[%clk 0:02:24.3]}
48... Rxh5 {[%clk 0:00:55]} 49. Rfxf2 {[%clk 0:02:23.4]} 49... Rg5 {[%clk
0:00:45.5]} 50. Rf7+ {[%clk 0:02:19.8]} 50... Kg6 {[%clk 0:00:44.3]} 51. Rgf2
{[%clk 0:02:19]} 51... Ra5 {[%clk 0:00:39.6]} 52. Rd7 {[%clk 0:02:14.6]} 52...
Nf5 {[%clk 0:00:36.8]} 53. Rc7 {[%clk 0:02:12.6]} 53... c5 {[%clk 0:00:34.4]}
54. Rc6+ {[%clk 0:01:57.2]} 54... Kg5 {[%clk 0:00:33.6]} 55. Re6 {[%clk
0:01:56]} 55... h5 {[%clk 0:00:32.5]} 56. Re5 {[%clk 0:01:55.1]} 56... h4 {[%clk
0:00:31.7]} 57. Rfxf5+ {[%clk 0:01:54.2]} 57... Kg4 {[%clk 0:00:31.2]} 58. Rg5+
{[%clk 0:01:53.1]} 58... Kf4 {[%clk 0:00:30.4]} 59. Rxc5 {[%clk 0:01:51.8]}
59... Ra6 {[%clk 0:00:29.5]} 60. Rh5 {[%clk 0:01:50.7]} 60... Kg4 {[%clk
0:00:27]} 61. Rcg5+ {[%clk 0:01:49.8]} 61... Kf4 {[%clk 0:00:26.7]} 62. Rg8
{[%clk 0:01:48.8]} 1-0